bitfinex/quotes_ETHUSD_20250622
["timestamp","ask_amount","ask_price","bid_price","bid_amount"]
[1750596687773,0.22973434,2275.8,2275.7,4.39425231]
[1750596687975,1.911,2275.9,2275.8,4.39405923]
[1750596688175,9.176,2275.9,2275.8,4.43799481]
[1750596688394,2.14072023,2276.0,2275.9,4.39386616]
[1750596688549,9.40572023,2276.0,2275.9,4.39386616]
[1750596689161,2.14072023,2276.0,2275.9,4.39386616]
[1750596689372,9.40572023,2276.0,2275.9,4.39386616]
[1750596690214,9.40472023,2276.0,2275.9,4.39386616]
[1750596691312,10.15822023,2276.0,2275.9,4.39386616]
[1750596691523,11.09869225,2276.0,2275.8,4.39404287]
[1750596691822,11.09869225,2276.0,2275.9,4.39386616]
[1750596696307,10.15822023,2276.0,2275.9,4.39386616]
[1750596696508,0.98322023,2276.0,2275.9,4.39386616]
[1750596696814,9.40372023,2276.0,2275.9,4.39386616]
[1750596697403,2.14072023,2276.0,2275.9,4.39386616]
[1750596697726,9.40272023,2276.0,2275.9,4.39386616]
[1750596699531,11.42524225,2276.0,2275.8,4.39396541]
[1750596701135,11.42524225,2276.0,2275.7,4.3941587]
[1750596701336,10.763,2275.9,2275.6,4.39433694]
[1750596701540,10.763,2275.9,2275.7,4.3940937]
[1750596702040,10.763,2275.9,2275.8,4.39405923]
[1750596703528,0.22972023,2276.0,2275.9,4.39386616]
[1750596703733,19.40072023,2276.0,2275.9,4.39386616]
[1750596704649,10.22972023,2276.0,2275.9,4.39386616]
[1750596704811,19.40072023,2276.0,2275.9,4.39386616]
[1750596705647,10.22972023,2276.0,2275.9,4.39386616]
[1750596705849,2.13972023,2276.0,2275.9,4.39386616]
[1750596706145,9.39972023,2276.0,2275.9,4.39386616]
[1750596708848,2.13972023,2276.0,2275.9,4.39386616]
[1750596709011,9.17,2276.0,2275.9,4.39386616]
[1750596715828,11.00822562,2276.2,2276.1,4.39348007]
[1750596716024,20.17322562,2276.2,2276.1,4.39348007]
[1750596716688,19.39472562,2276.2,2276.1,4.39348007]
[1750596716891,9.39472562,2276.2,2276.1,4.39348007]
[1750596717381,0.22972562,2276.2,2276.1,5.20718007]
[1750596717580,0.22972562,2276.2,2276.1,15.80110832]
[1750596717791,9.164,2277.1,2277.0,4.39174352]
[1750596718247,0.22963861,2277.2,2277.1,4.39155065]
[1750596718454,7.48663861,2277.2,2277.1,4.39155065]
[1750596718647,0.7548,2277.1,2276.9,4.39181138]
[1750596718891,0.7548,2277.1,2277.0,4.39174352]
[1750596719382,0.7548,2277.1,2276.6,4.39239526]
[1750596719588,0.7548,2277.1,2276.9,4.3919255]
[1750596720083,0.7548,2277.1,2276.3,1.21529376]
[1750596720287,0.7548,2276.9,2276.0,0.7694]
[1750596720587,0.7548,2276.7,2276.4,4.39286797]
[1750596721161,0.7548,2276.7,2275.9,4.39386616]
[1750596721367,0.7548,2276.7,2275.8,0.7694]
[1750596721368,0.7548,2276.7,2276.5,4.39259864]
[1750596721563,0.99188,2276.6,2276.4,4.3928848]
[1750596721765,9.163,2276.6,2276.4,4.3928848]
[1750596721985,9.162,2276.5,2276.2,0.7694]
[1750596722284,0.7548,2276.7,2276.3,4.39292534]
[1750596722490,1.906,2276.6,2276.5,4.39260501]
[1750596722688,9.162,2276.6,2276.5,4.39260501]
[1750596723394,1.906,2276.7,2276.6,4.39248718]
[1750596723571,9.162,2276.7,2276.6,4.39248718]
[1750596724269,9.162,2276.7,2276.3,4.39303148]
[1750596724476,9.9389,2276.7,2276.2,5.16263073]
[1750596724980,9.9389,2276.7,2276.3,4.39297258]
[1750596726190,9.9389,2276.7,2276.4,4.39286099]
[1750596729289,9.9389,2276.7,2276.3,4.39299528]
[1750596729867,9.9389,2276.7,2276.4,4.39288443]
[1750596731591,9.9389,2276.7,2276.3,4.39300943]
[1750596731798,10.93279,2276.7,2276.2,4.39315281]
[1750596732593,10.93279,2276.7,2275.8,14.39387967]
[1750596732594,10.93279,2276.7,2275.8,0.8222]
[1750596732794,0.7949,2276.5,2275.9,4.39384879]
[1750596733108,0.7949,2276.3,2275.6,0.8222]
[1750596733267,0.7949,2276.3,2275.8,4.39387403]
[1750596733268,9.159,2276.2,2275.8,4.39387403]
[1750596733466,9.159,2276.2,2275.9,4.39384797]
[1750596734999,9.159,2276.2,2276.0,4.39366988]
[1750596735202,9.159,2276.2,2275.9,4.39376175]
[1750596736589,9.159,2276.2,2276.0,4.39366957]
[1750596736790,9.159,2276.2,2275.9,4.39375994]
[1750596736977,10.17736233,2276.2,2275.9,4.39375994]
[1750596737295,10.17736233,2276.2,2275.8,4.39395847]
[1750596737508,10.17736233,2276.2,2275.9,4.39385384]
[1750596739400,9.159,2276.2,2275.9,4.39385384]
[1750596742476,7.252,2276.1,2276.0,4.3936546]
[1750596744075,7.252,2276.1,2275.9,4.3937682]
[1750596744303,0.8262,2275.9,2275.6,4.39434412]
[1750596744503,0.8262,2275.9,2275.6,4.39439042]
[1750596745773,0.8262,2275.9,2275.4,4.39483167]
[1750596745983,0.8262,2275.9,2275.7,4.39406291]
[1750596746375,0.8262,2276.3,2275.8,5.16065923]
[1750596746574,0.22972325,2276.4,2275.8,5.16065923]
[1750596746575,0.22972325,2276.4,2276.3,4.39309405]
[1750596748275,7.251,2276.6,2276.3,4.43702184]
[1750596748512,0.7952,2277.1,2276.5,4.3927081]
[1750596748819,0.22966403,2276.8,2276.7,4.94232222]
[1750596749111,7.251,2277.2,2277.1,4.39145918]
[1750596749683,7.251,2277.2,2277.1,4.39155065]
[1750596750684,2.13262006,2277.3,2277.2,4.3913578]
[1750596750884,9.38262006,2277.3,2277.2,4.3913578]
[1750596751788,0.22962006,2277.3,2277.2,5.2214578]
[1750596752893,7.25,2277.7,2277.3,4.39110493]
[1750596753094,7.25,2277.7,2277.5,4.3906211]
[1750596753300,0.22959579,2277.6,2277.2,0.8301]
[1750596753732,0.22959579,2277.6,2277.5,4.39077936]
[1750596754438,7.47859579,2277.6,2277.5,4.39077936]
[1750596754817,0.22959579,2277.6,2277.5,4.39077936]
[1750596755020,0.22959579,2277.6,2277.5,5.22708418]
[1750596755218,0.8219,2278.4,2278.1,4.38952686]
[1750596755411,9.151,2278.3,2278.2,4.38943025]
[1750596755730,10.25079198,2278.3,2278.1,4.38954326]
[1750596755896,1.09979198,2278.3,2278.2,4.38943025]
[1750596756101,9.38054427,2278.3,2277.7,4.39036946]
[1750596756302,9.38054427,2278.3,2277.9,4.38988985]
[1750596756714,9.38054427,2278.3,2278.1,4.38958953]
[1750596757453,9.38054427,2278.3,2278.0,4.38972227]
[1750596757938,9.38054427,2278.3,2277.8,4.39010962]
[1750596758140,1.02024443,2278.2,2277.8,4.39010962]
[1750596758344,0.8219,2278.1,2277.0,1.902]
[1750596758501,0.8219,2278.1,2277.7,4.39038202]
[1750596758906,0.8219,2278.1,2277.2,0.7924]
[1750596759110,1.62315767,2278.0,2277.2,0.7924]
[1750596759335,10.8219,2278.1,2277.3,0.0439047]
[1750596759336,9.149,2277.9,2277.3,0.0439047]
[1750596759534,9.149,2277.9,2277.8,4.39020107]
[1750596760006,9.149,2277.9,2277.7,4.39033458]
[1750596761524,9.149,2277.9,2277.8,4.39020107]
[1750596761864,9.148,2277.9,2277.8,4.39020107]
[1750596763923,9.148,2277.9,2277.7,4.39029073]
[1750596764636,9.148,2277.9,2277.4,4.39097216]
[1750596764817,9.148,2277.9,2277.2,5.18375131]
[1750596764818,0.8219,2278.1,2277.8,4.39020107]
[1750596765022,0.22954427,2278.3,2278.2,4.38943025]
[1750596765267,9.37654427,2278.3,2278.1,4.38952247]
[1750596765420,9.37654427,2278.3,2278.2,4.38943025]
[1750596765826,9.37554427,2278.3,2278.2,4.38943025]
[1750596766757,2.13154427,2278.3,2278.2,4.38943025]
[1750596767062,9.37554427,2278.3,2278.2,4.38943025]
[1750596767248,9.37554427,2278.3,2278.1,4.38952834]
[1750596767448,9.37554427,2278.3,2278.2,4.38943025]
[1750596768628,2.13154427,2278.3,2278.2,4.38943025]
[1750596768837,9.37554427,2278.3,2278.2,4.38943025]
[1750596770777,0.22954427,2278.3,2278.2,4.38943025]
[1750596770932,9.37554427,2278.3,2278.2,4.38943025]
[1750596771763,0.22954427,2278.3,2278.2,5.70703025]
[1750596771964,0.22954427,2278.3,2278.2,5.75091473]
[1750596772343,0.2298867,2279.0,2278.2,5.75091473]
[1750596772344,0.2298867,2279.0,2278.9,4.38808196]
[1750596772548,7.4718867,2279.0,2278.9,4.38808196]
[1750596772749,0.2298867,2279.0,2278.9,4.38808196]
[1750596772947,0.45932081,2279.0,2278.9,4.38808196]
[1750596773276,7.70132081,2279.0,2278.9,4.38808196]
[1750596773639,0.45932081,2279.0,2278.9,4.38808196]
[1750596773941,0.45932081,2279.0,2278.9,4.98195869]
[1750596774266,0.45932081,2279.0,2278.9,5.76905869]
[1750596774567,0.45932081,2279.0,2278.9,6.16801832]
[1750596774871,0.2298867,2279.0,2278.9,6.16801832]
[1750596775440,0.2298867,2279.0,2278.9,6.21188485]
[1750596775836,0.2298867,2279.0,2278.9,6.16801832]
[1750596776356,0.2298867,2279.0,2278.9,8.29971832]
[1750596776543,0.2298867,2279.0,2278.9,7.74971832]
[1750596776876,0.2298867,2279.0,2278.9,7.30688196]
[1750596777779,0.2298867,2279.0,2278.9,7.35075435]
[1750596778175,0.2298867,2279.0,2278.9,7.85688196]
[1750596779581,0.2298867,2279.0,2278.9,5.72518196]
[1750596779796,0.2298867,2279.0,2278.9,5.17518196]
[1750596779945,0.2298867,2279.0,2278.7,4.38843347]
[1750596780148,0.2298867,2279.0,2278.9,4.38808196]
[1750596780359,0.2298867,2279.0,2278.8,4.38817584]
[1750596780557,0.2298867,2279.0,2278.9,4.38808196]
[1750596780766,0.2298867,2279.0,2278.8,4.38821372]
[1750596781048,0.2298867,2279.0,2278.8,4.38824179]
[1750596781244,0.2298867,2279.0,2278.9,4.38808196]
[1750596784285,0.2298867,2279.0,2278.4,0.7871]
[1750596784487,0.8167,2278.9,2278.8,4.38827453]
[1750596784651,0.2298867,2279.0,2278.9,4.38808196]
[1750596785356,5.3362867,2279.2,2279.0,4.38777899]
[1750596785553,10.18308062,2279.3,2279.1,4.38768998]
[1750596785754,1.04608062,2279.3,2279.1,4.38768998]
[1750596786083,9.36638062,2279.3,2279.2,4.38750438]
[1750596786270,0.22938062,2279.3,2279.2,4.38750438]
[1750596788857,9.9527,2279.8,2279.7,4.38654208]
[1750596789171,19.9527,2279.8,2279.7,4.38654208]
[1750596789366,10.8167,2279.8,2279.7,4.38654208]
[1750596789567,11.04597292,2279.8,2279.7,4.38654208]
[1750596790074,0.22927292,2279.8,2279.7,4.38654208]
[1750596791159,0.22927292,2279.8,2279.2,0.7504]
[1750596791387,9.41270021,2279.8,2279.5,4.38682877]
[1750596791604,2.17570021,2279.8,2279.3,4.38725769]
[1750596791813,0.7512,2279.7,2279.4,4.38709188]
[1750596792677,0.7512,2279.7,2279.2,4.38740931]
[1750596792875,10.0,2279.6,2278.7,0.7639]
[1750596793111,0.8318,2279.5,2279.1,4.38760305]
[1750596793274,3.81298,2279.5,2279.1,4.38760305]
[1750596793471,3.81298,2279.5,2279.2,4.38741885]
[1750596793876,3.81298,2279.5,2279.1,4.38760073]
[1750596794683,3.81298,2279.5,2279.0,4.38778736]
[1750596795091,0.8318,2279.4,2278.4,15.15281106]
[1750596795291,7.236,2279.3,2278.8,4.38811384]
[1750596795497,8.77959254,2279.3,2278.8,4.38811384]
[1750596796314,8.77959254,2279.3,2278.7,4.38837114]
[1750596796527,0.8318,2279.2,2278.6,4.38858775]
[1750596796839,0.8318,2279.2,2278.8,4.38822405]
[1750596796991,0.8318,2279.2,2278.9,4.38806394]
[1750596797890,0.8318,2279.2,2279.1,4.38769689]
[1750596798091,10.0,2279.3,2279.1,4.38754857]
[1750596798992,1.898,2279.5,2279.3,4.38720554]
[1750596799216,10.0,2279.3,2279.2,4.38740306]
[1750596799607,7.236,2279.4,2279.3,4.38731189]
[1750596799811,10.0,2279.4,2279.3,4.38731189]
[1750596800123,17.236,2279.4,2279.3,4.38731189]
[1750596800424,7.236,2279.4,2279.3,4.38731189]
[1750596800913,0.8318,2279.7,2279.3,4.38731189]
[1750596801124,17.236,2279.6,2279.5,4.38692695]
[1750596801415,17.236,2279.6,2279.3,4.38717434]
[1750596801618,17.236,2279.6,2278.9,4.38797389]
[1750596801619,10.0,2279.6,2279.5,4.386772]
[1750596801918,17.235,2279.6,2279.4,4.3870146]
[1750596802233,0.8318,2279.7,2279.4,4.3870146]
[1750596802380,2.7298,2279.7,2279.6,4.38673451]
[1750596802686,9.9648,2279.7,2279.6,4.38673451]
[1750596803010,2.7006,2279.9,2279.7,4.38654208]
[1750596803211,10.22927292,2279.8,2279.7,4.38654208]
[1750596803583,17.46427292,2279.8,2279.7,4.38654208]
[1750596803916,10.22927292,2279.8,2279.7,4.38654208]
[1750596804107,7.46427292,2279.8,2279.7,4.38654208]
[1750596804434,7.46427292,2279.8,2279.5,4.38686965]
[1750596804435,7.46427292,2279.8,2279.6,4.3866293]
[1750596804831,7.46427292,2279.8,2279.7,4.38654208]
[1750596805067,0.22927292,2279.8,2279.7,4.38654208]
[1750596805322,7.46427292,2279.8,2279.7,4.38654208]
[1750596805539,0.22927292,2279.8,2279.7,4.38654208]
[1750596805695,0.22927292,2279.8,2279.7,5.19684208]
[1750596807885,0.22927292,2279.8,2279.7,5.74684208]
[1750596808083,0.22927292,2279.8,2279.7,5.79069863]
[1750596808286,0.22927292,2279.8,2279.7,5.74684208]
[1750596810617,0.22927292,2279.8,2279.7,5.19684208]
[1750596810955,0.22927292,2279.8,2279.7,5.74684208]
[1750596811310,0.1,2280.0,2279.9,4.38615728]
[1750596812655,0.1,2280.0,2279.9,5.79031079]
[1750596813029,0.1,2280.0,2279.9,15.79031079]
[1750596813237,0.1,2280.0,2279.9,17.64245728]
[1750596814517,0.22922758,2280.8,2280.7,4.93461875]
[1750596814740,0.22922758,2280.8,2280.7,5.35971875]
[1750596814914,0.2298867,2281.3,2281.2,4.38365772]
[1750596815350,0.4590927,2281.3,2281.2,4.38365772]
[1750596816432,0.4590927,2281.3,2280.5,10.55]
[1750596816634,0.4590927,2281.3,2281.2,4.38365772]
[1750596816946,1.2827927,2281.3,2281.2,4.38365772]
[1750596817467,1.2827927,2281.3,2281.1,4.3837676]
[1750596817756,1.2827927,2281.3,2281.0,4.38387635]
[1750596818061,1.2827927,2281.3,2281.1,4.38381513]
[1750596818420,1.2827927,2281.3,2281.0,4.38387635]
[1750596818421,1.2827927,2281.3,2281.2,4.38365772]
[1750596819923,0.4590927,2281.3,2281.2,4.38365772]
[1750596820347,0.4590927,2281.3,2281.1,4.38372436]
[1750596820545,0.827,2281.2,2280.8,4.38426744]
[1750596820746,0.827,2281.2,2280.6,4.3846564]
[1750596820965,0.827,2281.2,2280.7,4.38443698]
[1750596821437,0.827,2281.2,2280.8,4.38432078]
[1750596821855,0.827,2281.2,2280.7,4.38443698]
[1750596822056,0.827,2281.2,2280.9,4.38419906]
[1750596822251,0.827,2281.2,2281.0,4.38398978]
[1750596822455,0.827,2281.2,2280.8,4.38432996]
[1750596822662,1.9874302,2281.2,2280.7,4.38448269]
[1750596823051,0.7582,2281.1,2280.5,4.38488235]
[1750596823260,0.7582,2280.9,2280.2,0.8179]
[1750596823456,0.7582,2280.9,2280.5,4.38484225]
[1750596824077,0.7582,2280.9,2280.7,4.38457589]
[1750596824457,2.6542,2280.9,2280.8,4.38442651]
[1750596824780,9.8832,2280.9,2280.8,4.38442651]
[1750596825969,9.8822,2280.9,2280.7,4.38459869]
[1750596826168,9.8822,2280.9,2280.8,4.38442651]
[1750596826987,9.8822,2280.9,2280.6,4.38477033]
[1750596827690,11.1604302,2281.2,2280.4,4.38508272]
[1750596827691,0.7582,2281.2,2280.7,0.04384441]
[1750596827856,0.4590927,2281.3,2281.2,4.38365772]
[1750596828057,7.6870927,2281.3,2281.2,4.38365772]
[1750596828258,0.4590927,2281.3,2281.2,4.38365772]
[1750596828487,7.6870927,2281.3,2281.2,4.38365772]
[1750596829054,0.4590927,2281.3,2281.2,4.38365772]
[1750596830089,0.4590927,2281.3,2281.2,4.42748979]
[1750596831066,0.4590927,2281.3,2281.2,4.38365772]
[1750596834578,0.4590927,2281.3,2281.2,4.42748699]
[1750596835665,0.4590927,2281.3,2281.2,4.38365772]
[1750596837900,0.4590927,2281.3,2281.1,4.38375817]
[1750596838492,1.893,2281.2,2281.1,4.38375817]
[1750596838670,1.893,2281.2,2280.9,4.38411657]
[1750596838671,1.893,2281.2,2281.0,4.38394509]
[1750596838872,7.226,2281.1,2281.0,14.38394509]
[1750596841087,8.0578,2281.1,2281.0,14.38394509]
[1750596841695,9.9518,2281.1,2281.0,14.38394509]
[1750596842082,9.9518,2281.1,2281.0,4.38404208]
[1750596842284,0.8318,2281.1,2281.0,4.38404208]
[1750596842485,9.9518,2281.1,2281.0,4.38404208]
[1750596843306,0.4590927,2281.3,2281.0,4.38404208]
[1750596843307,0.4590927,2281.3,2281.2,10.0]
[1750596843470,0.4590927,2281.3,2281.2,14.38365772]
[1750596843678,0.2298867,2281.3,2281.2,15.74015772]
[1750596846508,0.2298867,2281.3,2281.2,5.74015772]
[1750596846676,0.2298867,2281.3,2281.2,5.78398219]
[1750596847191,0.2298867,2281.3,2281.2,5.74015772]
[1750596847906,0.2298867,2281.3,2281.2,4.93365772]
[1750596850005,0.2298867,2281.3,2281.2,4.97748609]
[1750596850417,0.2298867,2281.3,2281.2,4.93365772]
[1750596851432,0.2298867,2281.3,2281.2,4.97748618]
[1750596851621,0.2298867,2281.3,2281.2,4.93365772]
[1750596851797,0.2298867,2281.3,2281.2,4.38365772]
[1750596854832,0.2298867,2281.3,2281.2,4.9774879]
[1750596855130,0.2298867,2281.3,2281.2,5.8075879]
[1750596855530,0.2298867,2281.3,2281.2,5.76375772]
[1750596861645,0.2298867,2281.3,2281.2,15.76375772]
[1750596862855,0.2298867,2281.3,2281.2,22.98675772]
[1750596870717,0.2298867,2281.3,2281.2,23.20848762]
[1750596871149,0.2298867,2281.3,2281.2,22.98675772]
[1750596872107,0.2298867,2281.3,2281.2,15.76375772]
[1750596872314,0.2298867,2281.3,2281.2,22.98575772]
[1750596877153,0.2298867,2281.3,2281.2,4.38365772]
[1750596877848,0.2298867,2281.3,2281.2,14.93365772]
[1750596878054,0.2298867,2281.3,2281.2,14.38365772]
[1750596878618,0.2298867,2281.3,2281.2,4.38365772]
[1750596878820,1.0528867,2281.3,2281.2,4.38365772]
[1750596880154,0.823,2281.2,2280.3,1.25328539]
[1750596880367,0.823,2281.2,2280.9,4.38409321]
[1750596880965,0.823,2281.0,2280.6,4.38479571]
[1750596881264,0.29448867,2281.1,2280.3,0.44825755]
[1750596881498,1.892,2280.9,2280.8,4.38442651]
[1750596881831,2.715,2280.9,2280.8,4.38442651]
[1750596882066,2.715,2280.9,2280.7,4.38454066]
[1750596882371,0.823,2280.8,2280.1,10.0]
[1750596882665,0.823,2280.8,2280.4,4.38505186]
[1750596882866,0.823,2280.7,2280.5,4.38483677]
[1750596883168,2.715,2280.7,2280.5,4.38483677]
[1750596883530,2.715,2280.7,2280.4,4.38518946]
[1750596883531,0.823,2280.6,2280.4,4.38511185]
[1750596884143,0.823,2280.6,2280.5,4.38500328]
[1750596886038,0.823,2280.6,2280.4,4.38503222]
[1750596886249,0.823,2280.6,2277.9,6.76848176]
[1750596886250,0.823,2280.5,2280.2,4.38545932]
[1750596886644,0.823,2280.5,2280.4,4.38519557]
[1750596887133,0.823,2280.5,2279.8,10.55]
[1750596887441,0.823,2280.5,2279.8,10.0]
[1750596887641,0.823,2280.5,2280.1,4.38562156]
[1750596887858,0.823,2280.5,2279.8,14.38632319]
[1750596888175,0.823,2280.5,2280.3,4.38529508]
[1750596888176,0.762,2280.4,2280.3,4.38529508]
[1750596888661,0.762,2280.4,2280.3,4.38538788]
[1750596888662,9.878,2280.4,2280.3,4.38538788]
[1750596889473,10.10727751,2280.4,2280.3,4.38538788]
[1750596889664,10.10827751,2280.4,2280.3,4.38538788]
[1750596891067,0.99127751,2280.4,2280.3,4.38538788]
[1750596891273,10.10827751,2280.4,2280.3,4.38538788]
[1750596892755,0.99127751,2280.4,2280.3,4.38538788]
[1750596896561,8.21527751,2280.4,2280.3,4.38538788]
[1750596897091,0.99127751,2280.4,2280.3,4.38538788]
[1750596897401,7.45327751,2280.4,2280.3,4.38538788]
[1750596897976,9.5356,2280.8,2280.7,4.38461875]
[1750596898182,19.60516,2280.8,2280.6,4.38470378]
[1750596898379,0.22924504,2280.7,2280.6,4.38470378]
[1750596899080,0.22924504,2280.7,2280.5,4.38483348]
[1750596899280,0.7586,2280.6,2280.5,4.38483348]
[1750596900312,1.39736514,2280.6,2280.5,4.38483348]
[1750596900588,0.7586,2280.6,2280.5,4.38483348]
[1750596900964,9.34524504,2280.7,2280.6,4.93481101]
[1750596901380,9.116,2280.7,2280.6,4.93481101]
[1750596901588,0.7586,2280.9,2280.8,4.38442651]
[1750596901904,0.98782232,2280.9,2280.8,4.38442651]
[1750596902202,0.22922232,2280.9,2280.8,4.38442651]
[1750596902355,7.224,2281.0,2280.9,4.93423429]
[1750596902678,2.6506,2281.2,2281.1,4.38384989]
[1750596902679,0.7586,2281.2,2281.1,4.38384989]
[1750596902999,8.21178512,2281.2,2281.1,4.38384989]
[1750596903750,0.98778512,2281.2,2281.1,4.38384989]
[1750596903990,8.21078512,2281.2,2281.1,4.38384989]
[1750596904725,0.22918512,2281.2,2281.1,4.93384989]
[1750596905013,0.22918512,2281.2,2281.1,4.97768262]
[1750596905189,0.2298867,2281.3,2281.1,4.97768262]
[1750596905190,0.2298867,2281.3,2281.2,4.38365772]
[1750596905693,0.2298867,2281.3,2281.2,14.93365772]
[1750596905893,0.2298867,2281.3,2281.2,15.74805772]
[1750596906098,0.2298867,2281.3,2281.2,16.18219365]
[1750596907075,0.2298867,2281.3,2281.2,23.40419365]
[1750596911516,0.2298867,2281.3,2281.2,16.18219365]
[1750596913512,0.2298867,2281.3,2281.2,15.36779365]
[1750596916814,0.2298867,2281.3,2281.2,14.38365772]
[1750596917221,0.2298867,2281.3,2281.2,14.93365772]
[1750596918086,0.2298867,2281.3,2281.2,15.37627534]
[1750596918487,0.2298867,2281.3,2281.2,14.93365772]
[1750596918687,0.2298867,2281.3,2281.2,4.38365772]
[1750596918918,1.0057867,2281.3,2281.2,4.38365772]
[1750596925424,0.2298867,2281.3,2281.2,4.38365772]
[1750596928431,0.2298867,2281.3,2281.2,4.42748732]
[1750596928643,0.2298867,2281.3,2281.2,4.97748732]
[1750596929720,0.2298867,2281.3,2281.2,4.93365772]
[1750596932312,0.2298867,2281.3,2281.2,4.97748335]
[1750596933622,0.2298867,2281.3,2281.2,4.93365772]
[1750596937437,1.0444867,2281.3,2281.2,4.38365772]
[1750596940521,0.2298867,2281.3,2281.2,4.42748849]
[1750596943453,0.2298867,2281.3,2281.2,4.93365772]
[1750596943832,0.2298867,2281.3,2281.2,4.9774869]
[1750596944039,0.2298867,2281.3,2281.2,4.93365772]
[1750596944544,0.2298867,2281.3,2281.2,4.97748478]
[1750596945638,0.2298867,2281.3,2281.2,15.70365772]
[1750596950129,0.2298867,2281.3,2281.2,22.92265772]
[1750596953929,0.2298867,2281.3,2281.2,23.13830757]
[1750596955728,0.10507862,2281.3,2281.2,23.71342104]
[1750596957164,0.7935,2282.3,2282.2,4.38173692]
[1750596957368,2.6835,2282.3,2282.2,4.38173692]
[1750596958067,0.7935,2282.3,2282.2,4.38173692]
[1750596958269,0.22907115,2282.4,2282.3,4.93154493]
[1750596958456,0.7812,2282.8,2282.7,4.93077714]
[1750596958771,0.7812,2282.8,2282.7,4.38077714]
[1750596959375,0.7812,2282.8,2282.7,4.93077714]
[1750596959739,0.7812,2282.8,2282.7,4.97457852]
[1750596960059,0.22903114,2283.1,2283.0,4.38020148]
[1750596960450,1.01023114,2283.1,2283.0,4.38020148]
[1750596963882,0.7915,2283.0,2281.9,4.38231298]
[1750596964087,0.7915,2282.9,2281.9,0.43303028]
[1750596964249,0.7915,2282.8,2282.2,4.38155976]
[1750596964459,3.19769333,2282.7,2282.2,4.38155976]
[1750596964657,0.7915,2282.6,2282.2,4.38155976]
[1750596964850,0.7915,2282.6,2282.3,4.38153188]
[1750596966196,0.7915,2282.6,2282.2,4.38164627]
[1750596966344,0.7915,2282.6,2282.2,4.38172898]
[1750596966682,0.7915,2282.4,2282.2,4.38172898]
[1750596966886,0.7915,2282.4,2282.3,4.38154493]
[1750596967388,0.7915,2282.4,2282.2,4.38167642]
[1750596969283,0.7915,2282.4,2282.3,4.38154493]
[1750596970256,2.6805,2282.4,2282.3,4.38154493]
[1750596971439,0.7915,2282.4,2282.3,4.38154493]
[1750596973186,7.215,2283.0,2282.9,4.38026244]
[1750596973360,1.889,2283.0,2282.8,4.38048368]
[1750596973689,0.7937,2282.9,2282.8,4.38048368]
[1750596973988,2.6827,2282.9,2282.8,4.38048368]
[1750596975495,3.69537311,2282.9,2282.8,4.38048368]
[1750596976585,2.6827,2282.9,2282.8,4.38048368]
[1750596978693,2.6827,2282.9,2282.3,0.55]
[1750596978855,10.8218,2282.8,2282.3,4.38140409]
[1750596979189,0.8218,2282.7,2282.3,4.38140409]
[1750596979389,0.8218,2282.5,2282.3,4.38140409]
[1750596979575,1.889,2282.4,2282.3,4.38140409]
[1750596980781,2.93988031,2282.7,2282.6,4.38096907]
[1750596984293,2.93988031,2282.7,2282.5,4.3810413]
[1750596984470,3.95526834,2282.7,2282.5,4.3810413]
[1750596984967,3.95526834,2282.7,2282.6,4.38096907]
[1750596985783,1.05088031,2282.7,2282.6,4.38096907]
[1750596985981,10.15288031,2282.7,2282.6,4.38096907]
[1750596990073,1.05088031,2282.7,2282.6,4.38096907]
[1750596990280,10.15088031,2282.7,2282.6,4.38096907]
[1750596991564,1.887,2282.9,2282.7,4.38073785]
[1750596991760,0.8066,2283.1,2283.0,4.38020148]
[1750596991976,1.03564446,2283.1,2283.0,4.38020148]
[1750596992206,10.13564446,2283.1,2283.0,4.38020148]
[1750596994903,1.03564446,2283.1,2283.0,4.38020148]
[1750596995068,10.13464446,2283.1,2283.0,4.38020148]
[1750596995787,2.92264446,2283.1,2283.0,4.38020148]
[1750596995986,10.13464446,2283.1,2283.0,4.38020148]
[1750596996387,0.22904446,2283.1,2283.0,4.38020148]
[1750596996573,7.44104446,2283.1,2283.0,4.38020148]
[1750596996776,0.22904446,2283.1,2283.0,4.38020148]
[1750596997578,0.7977,2283.5,2283.0,0.59379622]
[1750596997829,0.7977,2283.5,2283.4,4.37943417]
[1750596997994,9.8957,2283.5,2283.4,4.37943417]
[1750596998197,10.12471006,2283.5,2283.4,4.37943417]
[1750596998589,10.12471006,2283.5,2283.3,4.37958931]
[1750596998590,10.12471006,2283.5,2283.3,4.37952813]
[1750596998793,1.02671006,2283.5,2283.3,4.37952813]
[1750596998991,9.098,2283.4,2283.3,4.37952813]
[1750596999193,0.7812,2283.3,2283.0,0.432381]
[1750596999536,0.7812,2283.3,2281.3,4.38330356]
[1750596999537,0.7812,2283.2,2282.7,4.38074224]
[1750596999827,0.7812,2283.2,2282.6,4.38092542]
[1750597000179,4.37981797,2283.2,2282.6,4.38092542]
[1750597000524,0.7812,2283.0,2282.5,4.38106144]
[1750597000726,0.7812,2282.8,2282.6,4.38096384]
[1750597001297,0.7812,2282.8,2282.5,4.38106159]
[1750597001587,0.7812,2282.8,2282.4,4.38125281]
[1750597002127,0.7812,2282.8,2282.5,4.38100556]
[1750597002927,0.7812,2282.8,2282.4,4.38125241]
[1750597003081,0.8213,2282.7,2281.3,4.38345488]
[1750597003282,0.8213,2282.6,2281.4,5.14497342]
[1750597003521,0.8213,2282.6,2282.2,4.38162889]
[1750597003826,2.7083,2282.6,2282.5,4.381161]
[1750597004130,0.8213,2282.6,2282.4,4.38126119]
[1750597004326,0.8213,2282.6,2282.3,4.38146566]
[1750597004696,9.098,2282.5,2282.3,4.38146566]
[1750597006137,9.098,2282.5,2282.4,4.38135296]
[1750597006297,9.098,2282.5,2282.3,4.38144712]
[1750597006928,0.8213,2282.6,2282.3,4.38144712]
[1750597007132,9.098,2282.4,2282.3,4.38144712]
[1750597008634,1.887,2282.4,2282.3,4.38144712]
[1750597008935,1.887,2282.5,2282.4,4.38127058]
[1750597009124,9.098,2282.5,2282.4,4.38127058]
[1750597009296,9.098,2282.5,2282.4,4.38135296]
[1750597011541,2.6692,2282.8,2282.7,4.38077714]
[1750597011839,9.8802,2282.8,2282.7,4.38077714]
[1750597012413,9.8802,2282.8,2282.5,4.38104467]
[1750597012613,9.8802,2282.8,2282.3,4.38154493]
[1750597012839,9.8802,2282.8,2282.7,4.38077714]
[1750597013204,9.098,2282.8,2282.7,4.38077714]
[1750597013438,9.5964,2283.0,2282.9,4.38039335]
[1750597013613,18.6944,2283.0,2282.9,4.38039335]
[1750597014100,17.869,2283.0,2282.9,4.38039335]
[1750597014307,8.771,2283.0,2282.9,4.38039335]